Cogmind - Beta 14 @@@ ROGUE MODE // 2024.11.09 @ 13:48:57 Player: Darsidian Result: Destroyed by Y-45 Defender with Beam Rifle Performance ------------- Evolutions (2) 1000 Regions Visited (4) 800 Robots Destroyed (30) 150 Value Destroyed (434) 434 Prototype IDs (1) 20 Alien Tech Used (0) 0 Bonus (14) 14 TOTAL SCORE: 2418 Bonus ------- Follower Combat Kills 14 Cogmind --------- Core Integrity 0/550 Matter 124/300 Energy 100/100 System Corruption 4% Temperature Cool (11) Movement Flying (35) Location -8/Materials Parts ------- > --- POWER (1) -------- (None) > --- PROPULSION (3) --- Improved VTOL Module > --- UTILITY (5) ------ Improved Sensor Array Improved Signal Interpreter ECM Suite Improved Propulsion Shielding > --- WEAPON (2) ------- (None) > --- INVENTORY (5) ---- Light Nuclear Core Small Storage Unit Transmission Jammer Reaction Control System Rocket Launcher Peak State ------------ > --- POWER ------------ Makeshift Power Source > --- PROPULSION ------- Flight Unit Surge Thruster Surge Thruster > --- UTILITY ---------- Structural Scanner Improved Sensor Array ECM Suite Reaction Control System Hacking Suite > --- WEAPON ----------- Scythe > --- INVENTORY -------- Light Ion Engine Surge Thruster Small Storage Unit EMP Blaster Scythe [Rating: 26] Favorites ----------- Power Light Ion Engine Engine Light Ion Engine Power Core Light Nuclear Core Propulsion Flight Unit Leg Myomer Leg Wheel Wheel Hover Unit Improved Hover Unit Flight Unit Flight Unit Utility Sensor Array Device Sensor Array Storage Small Storage Unit Processor Improved Signal Interpreter Hackware Hacking Suite Protection Improved Propulsion Shielding Weapon Light Assault Rifle Energy Gun Beamcaster Ballistic Gun Light Assault Rifle Launcher EMP Blaster Special Weapon Mining Laser Slashing Weapon Scythe Build | -11 -10 -10 -10 -8 ------- Run | Yrd Mat Min Sub Mat Slots Evolved 4 | . . . . 4 Power . | . . . . . Propulsion 1 | . . . . 1 Utility 3 | . . . . 3 Weapon . | . . . . . Parts Attached 77 | 7 9 2 8 51 Power 11 | 1 1 . 2 7 Engine 10 | 1 1 . 2 6 Core 1 | . . . . 1 Reactor . | . . . . . Propulsion 24 | 2 6 . 4 12 Treads . | . . . . . Leg 1 | . . . 1 . Wheel 10 | 2 4 . 2 2 Hover 1 | . . . . 1 Flight 12 | . 2 . 1 9 Utility 24 | 2 1 . . 21 Device 18 | 1 1 . . 16 Storage 1 | 1 . . . . Processor 3 | . . . . 3 Hackware 1 | . . . . 1 Protection 1 | . . . . 1 Artifact . | . . . . . Weapon 18 | 2 1 2 2 11 Energy Gun 1 | . . . . 1 Energy Cannon . | . . . . . Ballistic Gun 5 | 2 1 1 1 . Ballistic Cannon . | . . . . . Launcher 3 | . . . . 3 Special Weapon 4 | . . 1 1 2 Impact Weapon . | . . . . . Slashing Weapon 5 | . . . . 5 Piercing Weapon . | . . . . . Special Melee Weapon . | . . . . . Unidentified Prototypes 1 | . . . . 1 Parts Lost 15 | . . . 2 13 Power 1 | . . . 1 . Propulsion 5 | . . . . 5 Utility 6 | . . . . 6 Weapon 3 | . . . 1 2 Highest Loss Streak 6 | . . . 2 6 To Critical Strikes . | . . . . . Average Slot Usage (%) 85 | . 96 85 95 74 Engine 7 | . 10 . 12 5 Wheel 6 | . 22 . 10 . Flight 17 | . 5 28 15 19 Device 18 | . 14 14 14 24 Storage 8 | . 14 14 14 . Processor 2 | . . . . 7 Hackware 2 | . . . . 6 Ballistic Gun 16 | . 27 27 25 . Slashing Weapon 2 | . . . . 6 Peak Build Rating 26 | 7 8 7 16 26 Average Rating 12 | 4 7 7 9 19 On Entrance 5 | . 7 7 7 6 Naked Turns . | . . . . . Heaviest Build 15 | 14 14 8 11 15 Greatest Support 26 | 20 20 8 25 26 Greatest Overweight (x) 3 | . 1 . 3 2 Average Overweight (x) . | . . . . . Largest Inventory Capacity 8 | 8 8 8 8 8 Average Capacity 6 | 7 8 8 8 5 Most Carried 8 | 2 8 8 8 7 Average Carried 6 | 1 6 8 7 4 Final Capacity 8 | 8 8 8 8 5 Final Carried 8 | 2 8 8 8 5 Class Distribution -------------------- 47% | Mutant 30% | Scavenger-Mutant 8% | Ninja 8% | Scavenger-Sprinter 4% | Infiltrator-Mutant Dominant Class ---------------- Mutant | -10/Materials Mutant | -10/Mines Scavenger-Mutant | -10/Subcaves Scavenger-Mutant | -8/Materials Resources | -11 -10 -10 -10 -8 ----------- Run | Yrd Mat Min Sub Mat Matter Collected 934 | 280 166 52 96 340 Remotely . | . . . . . Salvage Created 727 | 85 267 13 36 326 Parts 66 | 6 20 1 2 37 Haulers Intercepted 1 | . 1 . . . Recyclers Shooed . | . . . . . Parts Field Recycled . | . . . . . Retrieved Matter . | . . . . . Parts Self-Destructed 10 | . . . 10 . Prevented . | . . . . . Kills | -11 -10 -10 -10 -8 ------- Run | Yrd Mat Min Sub Mat Combat Hostiles Destroyed 20 | . 8 1 1 10 Melee 5 | . . . . 5 Guns 10 | . 8 1 1 . AOE 5 | . . . . 5 Classes Destroyed 10 | 2 4 . 1 3 Worker 4 | . . . . 4 Tunneler 2 | 1 . . . 1 Hauler 1 | . 1 . . . Recycler 1 | 1 . . . . Operator 1 | . 1 . . . Watcher 1 | . . . . 1 Swarmer 10 | . 6 1 . 3 Cutter 7 | . . . . 7 Grunt 2 | . 2 . . . Subdweller 1 | . . . 1 . Best Kill Streak 4 | 1 4 1 1 3 Combat Bots Only 4 | . 4 1 1 3 Max Kills in Single Turn 3 | 1 1 1 1 3 Gunslinging . | . . . . . Exploded 3 | . . . . 3 Melee 1 | . . . . 1 Uniques/NPCs Destroyed . | . . . . . Combat | -11 -10 -10 -10 -8 -------- Run | Yrd Mat Min Sub Mat Hostile Shots Fired 166 | . 31 . 3 132 Missed 74 | . 12 . 1 61 Damage Taken 1463 | . 174 . 139 1150 Core 574 | . 15 . . 559 Absorbed by Shields . | . . . . . Redirected to Shielding 35 | . . . . 35 Core Remaining (%) 97 | 100 . . 94 . Volleys Fired 77 | 5 36 5 11 20 Largest 2 | 2 2 2 2 1 Hottest 100 | 40 40 100 100 100 Shots Fired 128 | 10 72 9 17 20 Gun 108 | 10 72 8 16 2 Cannon . | . . . . . Launcher 4 | . . . . 4 Special 16 | . . 1 1 14 Kinetic 106 | 10 72 8 16 . Thermal 18 | . . 1 1 16 Explosive 1 | . . . . 1 Electromagnetic 3 | . . . . 3 Robot Hit Streak 4 | 4 4 3 4 2 Robot Miss Streak 4 | 2 4 1 2 3 Penetration Max . | . . . . . Secondary Targets . | . . . . . Shots Hit Robots 73 | 6 34 5 8 20 Core Hits 36 | 3 14 1 2 16 Critical Kills 1 | . 1 . . . Critical Parts Destroyed . | . . . . . Critical Strikes 2 | . 1 . . 1 Burn 1 | . . . . 1 Destroy 1 | . 1 . . . Melee Attacks 65 | . . . . 65 Impact . | . . . . . Slashing 65 | . . . . 65 Piercing . | . . . . . Sneak Attacks 4 | . . . . 4 Combat Hostiles . | . . . . . Follow-up Attacks . | . . . . . Damage Inflicted 1465 | 61 341 45 50 968 Guns 539 | 61 341 45 50 42 Cannons . | . . . . . Explosions 169 | . . . . 169 Melee 757 | . . . . 757 Ramming . | . . . . . Kinetic 497 | 61 341 45 50 . Thermal 86 | . . . . 86 Explosive . | . . . . . Electromagnetic 125 | . . . . 125 Impact . | . . . . . Slashing 757 | . . . . 757 Piercing . | . . . . . Highest Corruption 4 | . . . . 4 Average Corruption 2 | . . . . 2 Corruption Purged . | . . . . . Corruption Blocked . | . . . . . Effects 12 | . . . . 12 Message Errors 1 | . . . . 1 Matter Fused 5 | . . . . 5 Heat Flow Errors 3 | . . . . 3 Data Loss (minor) 3 | . . . . 3 Overload Shots . | . . . . . Overflow Damage 62 | . . . . 62 Projectiles . | . . . . . Explosions . | . . . . . Melee 62 | . . . . 62 Knockbacks . | . . . . . Impact . | . . . . . Kinetic . | . . . . . Secondary . | . . . . . Self-Inflicted Damage 60 | . . . . 60 Shots 4 | . . . . 4 Rammed . | . . . . . Targets Rammed . | . . . . . Kicked . | . . . . . Crushed . | . . . . . Highest Temperature 253 | . 6 8 . 253 Average Temperature 35 | . 6 5 . 39 Received Heat Transfer 306 | . 48 . 15 243 Siege Activations . | . . . . . Robots Corrupted . | . . . . . Combat Hostiles . | . . . . . Parts Fried . | . . . . . Impact Corruptions . | . . . . . Robots Melted . | . . . . . Combat Hostiles . | . . . . . Parts Melted . | . . . . . Heat Transferred 198 | . . . . 198 Parts Sabotaged . | . . . . . Parts Stolen . | . . . . . Parts Stripped . | . . . . . Power Chain Reactions 1 | . . . . 1 Alert | -11 -10 -10 -10 -8 ------- Run | Yrd Mat Min Sub Mat Peak Influence 372 | 10 252 74 . 372 Initial 43 | . 6 43 . . Average 99 | 3 92 31 . 132 Maximum Alert Level 1 | . 1 . . 1 Low Security (%) 79 | 100 92 100 . 66 Level 1 20 | . 8 . . 33 Level 2 . | . . . . . Level 3 . | . . . . . Level 4 . | . . . . . Level 5 . | . . . . . High Security . | . . . . . Max Security . | . . . . . Squads Dispatched 8 | . 1 . . 7 Investigation 1 | . . . . 1 Extermination . | . . . . . Reinforcement 6 | . 1 . . 5 Assault . | . . . . . Garrison 1 | . . . . 1 Intercept . | . . . . . Searches Triggered . | . . . . . Construction Impeded . | . . . . . Haulers Reinforced . | . . . . . Active Scanning Responses . | . . . . . Cargo Convoy Interrupts . | . . . . . Stealth | -11 -10 -10 -10 -8 --------- Run | Yrd Mat Min Sub Mat Distress Signals 3 | . 1 . . 2 Communications Jammed 3 | . . . . 3 Distress Signals 3 | . . . . 3 Times Spotted 110 | . 18 3 12 77 Peak Tracking Total 12 | . 6 2 5 12 Tactical Retreats 22 | . . . . 22 Traps | -11 -10 -10 -10 -8 ------- Run | Yrd Mat Min Sub Mat Traps Triggered 1 | . . . 1 . Indirectly . | . . . . . Trap Hack Attempts . | . . . . . Triggered . | . . . . . Disarmed . | . . . . . Reprogrammed . | . . . . . Reused . | . . . . . Traps Extracted . | . . . . . Installed . | . . . . . Triggered . | . . . . . Machines | -11 -10 -10 -10 -8 ---------- Run | Yrd Mat Min Sub Mat Machines Disabled 4 | . . . . 4 Max in Single Turn 2 | . . . . 2 Machines Repaired . | . . . . . Machines Dismantled . | . . . . . Machines Sabotaged . | . . . . . Overloaded Fab Kills . | . . . . . Hacking | -11 -10 -10 -10 -8 --------- Run | Yrd Mat Min Sub Mat Machines Accessed 17 | . 3 . . 14 Terminals 14 | . 3 . . 11 Fabricators . | . . . . . Repair Stations 1 | . . . . 1 Recycling Units 2 | . . . . 2 Scanalyzers . | . . . . . Garrison Access . | . . . . . Total Hacks 47 | . 6 . . 41 Successful 31 | . 4 . . 27 Failed 16 | . 2 . . 14 Catastrophic 4 | . 1 . . 3 Database Lockouts . | . . . . . Manual 37 | . 5 . . 32 Terminals 42 | . 6 . . 36 Fabricators . | . . . . . Repair Stations 3 | . . . . 3 Recycling Units 2 | . . . . 2 Scanalyzers . | . . . . . Garrison Access . | . . . . . Terminal Hacks 7 | . 1 . . 6 Record 2 | . 1 . . 1 Branch Access Points 1 | . . . . 1 Alert Level 1 | . . . . 1 Unreport Threat 1 | . . . . 1 Recall Reinforcements 1 | . . . . 1 Zone Layout 1 | . . . . 1 Fabricator Hacks . | . . . . . Repair Station Hacks 2 | . . . . 2 Scan Component 1 | . . . . 1 Refit 1 | . . . . 1 Recycling Unit Hacks 2 | . . . . 2 Report Inventory 2 | . . . . 2 Scanalyzer . | . . . . . Garrison Access Hacks . | . . . . . Unauthorized Hacks 20 | . 3 . . 17 Terminals 20 | . 3 . . 17 Track 7 | . 1 . . 6 Assimilate 1 | . . . . 1 Botnet 11 | . 2 . . 9 Operators 1 | . . . . 1 Fabricators . | . . . . . Repair Stations . | . . . . . Recycling Units . | . . . . . Scanalyzers . | . . . . . Garrison Access . | . . . . . Data Cores Recovered . | . . . . . Used . | . . . . . Hacking Detections 15 | . 3 . . 12 Full Trace Events 1 | . . . . 1 Feedback Events 1 | . . . . 1 Corruption 1 | . . . . 1 Feedback Blocked . | . . . . . Robot Schematics Acquired . | . . . . . Robots Built . | . . . . . Authchips . | . . . . . Time . | . . . . . Total Robot Build Rating . | . . . . . Part Schematics Acquired . | . . . . . Parts Built . | . . . . . Authchips . | . . . . . Time . | . . . . . Total Part Build Rating . | . . . . . Parts Repaired . | . . . . . Time . | . . . . . Parts Recycled . | . . . . . Recycled Matter . | . . . . . Retrieved Matter . | . . . . . Retrieved Components . | . . . . . Parts Scanalyzed . | . . . . . Part Schematics Acquired . | . . . . . Parts Damaged . | . . . . . Bothacking | -11 -10 -10 -10 -8 ------------ Run | Yrd Mat Min Sub Mat Used RIF Installer . | . . . . . Robots Hacked . | . . . . . Non-combat . | . . . . . Combat . | . . . . . Robot Hacks Applied . | . . . . . Relay Couplers Released . | . . . . . Fabnet Peak Effective % . | . . . . . Robots Rewired . | . . . . . Allies Hacked . | . . . . . Hacks Repelled . | . . . . . Allies | -11 -10 -10 -10 -8 -------- Run | Yrd Mat Min Sub Mat Total Allies 3 | . . 2 . 1 Largest Group 2 | . . 2 1 1 Highest-Rated Group 47 | . . 47 31 10 Highest-Rated Ally 31 | . . 31 31 10 Total Orders . | . . . . . Ally Attacks 11 | . . 7 4 . Total Damage 85 | . . 63 22 . Kills 2 | . . 2 . . Allies Corrupted . | . . . . . Allies Melted . | . . . . . Intel | -11 -10 -10 -10 -8 ------- Run | Yrd Mat Min Sub Mat Robot Analysis Total . | . . . . . Derelict Logs Recovered 2 | . . 2 . . Drone Launches . | . . . . . Drone Recoveries . | . . . . . Exploration | -11 -10 -10 -10 -8 ------------- Run | Yrd Mat Min Sub Mat Turns Passed 3518 | 66 500 532 1042 1378 Spaces Moved 3398 | 50 449 486 936 1477 Core 226 | 4 . . 156 66 Treads . | . . . . . Legs 88 | . . . 88 . Wheels 779 | 46 270 . 433 30 Hover 58 | . . . . 58 Flight 2247 | . 179 486 259 1323 Fastest Speed 30 | 50 37 37 37 30 Average Speed 61 | 77 63 37 105 40 Slowest Speed 200 | 80 125 37 200 150 Overloaded Moves . | . . . . . Propulsion Burnouts . | . . . . . Robots Hopped 8 | . 1 . . 7 Cave-ins Triggered 1 | . . . . 1 Exploration Rate (%) 50 | 4 73 57 30 88 Regions Visited 4 Branch Regions 2 Pre-discovered Areas . | . . . . . Known Exits Taken . | . . . . . Unknown Exits Taken 4 | 1 1 1 1 . Scrap Searched 2 | . . 1 1 . Spaces Dug 46 | . . 1 . 45 Terrain Destroyed 60 | . . 1 . 59 Melee 31 | . . . . 31 Projectile 15 | . . 1 . 14 AOE 14 | . . . . 14 Terrain Rammed . | . . . . . Walls Destroyed . | . . . . . Machines Disabled . | . . . . . Actions | -11 -10 -10 -10 -8 --------- Run | Yrd Mat Min Sub Mat Total 4575 | 64 605 827 971 2108 Wait 899 | 1 91 335 10 462 Move 3378 | 49 446 485 935 1463 Hop 8 | . 1 . . 7 Pick Up 22 | 2 11 . 1 8 Fast Attach 35 | 7 5 . 4 19 Attach 19 | . . . 2 17 Detach 16 | . . . 2 14 Swap 24 | . 4 2 2 16 Drop 34 | . 11 . 4 19 Fire 77 | 5 36 5 11 20 Melee 63 | . . . . 63 Ram . | . . . . . Kick . | . . . . . Crush . | . . . . . Escape Stasis . | . . . . . Rewire . | . . . . . Trap . | . . . . . Miscellaneous . | . . . . . Route ------- -11/Scrapyard -10/Materials (discovered 2 exits: [*Mat] / [*Min]) -10/Mines -10/Subcaves (discovered 2 exits: *Mat x2) -8/Materials (discovered 1 exit: [*Fac]) History --------- Turn | Location | Event 18 | -11/Scrapyard | Discovered new exit (range 15) 67 | -11/Scrapyard | Entered Materials 193 | -10/Materials | Discovered new exit (range 16) 331 | -10/Materials | Build established: Mutant 471 | -10/Materials | Discovered new exit (range 6) 567 | -10/Materials | Entered Mines 572 | -10/Mines | Learned Materials trap positions 625 | -10/Mines | Learned Materials terminal intel 1040 | -10/Mines | Discovered new exit (range 13) 1099 | -10/Mines | Entered Subcaves 1099 | -10/Subcaves | Accompanied by 1 ally 1104 | -10/Subcaves | Led the pair of lost Derelicts to an unsafe place 1123 | -10/Subcaves | Ambushed by Subdwellers from Twisted Machinery 1192 | -10/Subcaves | Ambushed by swarm of Subdwellers 1324 | -10/Subcaves | Discovered new exit (range 6) 1448 | -10/Subcaves | Build established: Scavenger-Mutant 1503 | -10/Subcaves | Discovered new exit (range 15) 1609 | -10/Subcaves | Disturbed a concealed Subdweller 2057 | -10/Subcaves | Build established: Mutant 2141 | -10/Subcaves | Entered Materials 2141 | -8/Materials | Evolved 4 slots: Propulsion x1, Utility x3 2142 | -8/Materials | Loaded intel: 19 trap records 2143 | -8/Materials | Loaded intel: 12 terminal locations 2443 | -8/Materials | Build established: Scavenger-Mutant 2448 | -8/Materials | Discovered new exit (range 3) 2889 | -8/Materials | Build established: Scavenger-Sprinter 3066 | -8/Materials | Garrison activated, responded to threat 3096 | -8/Materials | Core integrity fell below 50% 3119 | -8/Materials | Crushed by falling debris 3122 | -8/Materials | Core integrity fell below 20% 3153 | -8/Materials | Lost 6 parts (2n3u1w) 3353 | -8/Materials | Build established: Ninja 3519 | -8/Materials | Destroyed by Y-45 Defender with Beam Rifle Last Messages --------------- 03338_ System corrupted: Matter fused (-7). 03339_ Acquired 16 matter. 03357_ Discarded Visual Processing Unit. 03357_ Acquired Transmission Jammer. 03359_ Discarded Machine Analyzer. 03366_ W-25 Informer sends out distress signal. 03367_ Destroyed Imp. Hover Unit. 03379_ System corrupted: Matter fused (-7). 03382_ Acquired Imp. Hover Unit. 03391_ Connecting with Terminal... >>Alert(Check) Current Alert Level: 1-C Feedback: System corruption (+1%). 03391_ ALERT: Suspicious activity at Terminal M001. Dispatching Investigation squad. 03400_ Acquired Imp. Propulsion Shielding. 03415_ System corrupted: Matter fused (-7). 03475_ Imp. Hover Unit destroyed. 03495_ Scythe destroyed. 03500_ Dropped Deuterium Engine. Map ----- +----------------------------------------------------+ | # #???????????# | | #??????????## | | #??????????#" ######## ###### ##### ###### | | !#???######### ####?###### ###### ##### ###### | | #??## T ## #???????????????## ???## ###### | | ##?#" ## #???????????????## ???## ###### | | "#?## """ !## #???????????????##+???## # | | T#??#*""" ## #???????????????# ??? # # | | "#??# """ ## #????????????????????? # # """ | | ###?# ## ##???????????????"S??? + + """ | | #######+## #???????????????"""?? # # """ | | #????????????????""?? # # | | #???????????????????? # ###### | | ##+####### #????????????????????## # | | # # ### ########??????????????## # = | | # # #?# # ! #??????????????## # | | + # ! #?# + ]#?????#????????## + | | # # """ #?# # """ #???? #????????## # ][[ | | # # """ #?# # """ !#???? #????????## < # [[[ | | ##### """ ### # """ #??? #????????## # [[[ | | #?### ## #?? #??? +????????###### | | ##"## """ # #####+#??? #????????########### | | !### """ # #??? ##???????????####### | | !## " ! ##### #?? r #?????????????????? | | !## ####???# ### #?????????????????? | | !###### ###??????# @ Y +?????????????????? | | !#????#####????????##### #?????????????????? | | !##?????????????????????? #?????????????????? | | ###????????????????????????#####?????????????????? | | ?????????????????????????????????????????????????? | | | | | | | | | | | | | | | | | | | | | | | | | | | | | | | | | | | | | | | | | +----------------------------------------------------+ Best States ------------- Heat Dissipation 31 Energy Generation 15 Energy Capacity 250 Matter Stores 300 Matter Capacity 300 Sight Range 18 Robot Scan Range 15 Terrain Scan Density 10 ECM Strength 1 Jamming Range 12 Propulsion Shielding 66 Evasion (%) 71 Offensive Hacking 10 Item Schematics ----------------- None Robot Schematics ------------------ None Fabricated ------------ Nothing Alien Tech Used ----------------- None Achievements -------------- None Challenges ------------ None Game ------ Seed TransportFireReconstructor Manual? 0 Play Time 01:26:33 Cumulative 139.1 hours Start 2024.11.09 @ 11:53:02 End 2024.11.09 @ 13:48:57 Sessions 1 Manual Loads 0 Difficulty Rogue Special Mode None Game No. 43 Rogue 43 Adventurer 0 Explorer 0 Win Type - Total 0 Types 0/0/0/0/0/0/0/0/0 Lore% 18 Gallery% 45 Achievement% 38 Wizard Run 0 Options --------- Layout 0 ASCII 0 Keyboard 0 Movement Mouse Keybinds 0 Fullscreen 1 Font 36/Smallcaps Map View 76x50 Zoom Use 0% Tactical HUD 1 Map Filters NONE Filters NONE Steam X RUN: 0a3c1932-c501-4385-a71f-a3adad5ac4e0